Cogmind - Beta 13 @@@ ROGUE MODE // 2024.04.19 @ 11:43:43 Player: albenzo Result: Destroyed by G-47 Trooper with Particle Gun Performance ------------- Evolutions (2) 1000 Regions Visited (3) 600 Robots Destroyed (61) 305 Value Destroyed (1609) 1609 Prototype IDs (7) 140 Alien Tech Used (0) 0 Bonus (28) 28 TOTAL SCORE: 3682 Bonus ------- High Alert Combat Kills 28 Cogmind --------- Core Integrity 0/550 Matter 290/300 Energy 100/100 System Corruption 0% Temperature Cool (9) Movement Core (350) Ox6 Location -8/Materials Parts ------- > --- POWER (1) -------- (None) > --- PROPULSION (4) --- (None) > --- UTILITY (4) ------ Heat Sink Large Storage Unit Target Analyzer > --- WEAPON (2) ------- (None) > --- INVENTORY (15) --- Light Ion Engine Light Nuclear Core Medium Storage Unit Improved Sensor Array Heavy EM Shotgun Battle Rifle Grenade Launcher Katana Ripper Peak State ------------ > --- POWER ------------ Makeshift Power Source > --- PROPULSION ------- Improved Aluminum Leg Improved Aluminum Leg Titanium Leg Makeshift Leg > --- UTILITY ---------- Improved Heat Sink Large Storage Unit Target Analyzer Improved Shield Generator > --- WEAPON ----------- Gauss Rifle Slug Cannon > --- INVENTORY -------- Cooled Ion Engine Light Nuclear Core Heat Sink Medium Storage Unit Pulse Rifle Heavy Laser Heavy Laser Heavy Laser Heavy Laser Makeshift Laser Battle Rifle Grenade Launcher Katana Ripper [Rating: 38] Favorites ----------- Power Makeshift Power Source Engine Makeshift Power Source Power Core Light Nuclear Core Propulsion Armored Wheel Treads Light Treads Leg Improved Aluminum Leg Wheel Armored Wheel Utility Large Storage Unit Device Seismic Detector Storage Large Storage Unit Processor Target Analyzer Protection Scrap Shield Weapon Battle Rifle Energy Gun Heavy Laser Ballistic Gun Battle Rifle Ballistic Cannon Slug Cannon Launcher Grenade Launcher Build | -11 -10 -10 -8 ------- Run | Yrd Mat Sub Mat Slots Evolved 4 | . . . 4 Power . | . . . . Propulsion 2 | . . . 2 Utility 2 | . . . 2 Weapon . | . . . . Parts Attached 61 | 8 13 15 25 Power 9 | 2 1 4 2 Engine 8 | 2 1 4 1 Core 1 | . . . 1 Reactor . | . . . . Propulsion 16 | 2 3 2 9 Treads 4 | 2 . . 2 Leg 7 | . . . 7 Wheel 5 | . 3 2 . Hover . | . . . . Flight . | . . . . Utility 11 | 2 3 1 5 Device 5 | 1 1 . 3 Storage 4 | 1 2 . 1 Processor 1 | . . . 1 Hackware . | . . . . Protection 1 | . . 1 . Artifact . | . . . . Weapon 25 | 2 6 8 9 Energy Gun 7 | . . . 7 Energy Cannon . | . . . . Ballistic Gun 16 | 2 6 7 1 Ballistic Cannon 1 | . . 1 . Launcher 1 | . . . 1 Special Weapon . | . . . . Impact Weapon . | . . . . Slashing Weapon . | . . . . Piercing Weapon . | . . . . Special Melee Weapon . | . . . . Unidentified Prototypes 1 | . . . 1 Parts Lost 21 | . . 1 20 Power 4 | . . 1 3 Propulsion 7 | . . . 7 Utility 3 | . . . 3 Weapon 7 | . . . 7 Highest Loss Streak 9 | . . 1 9 To Critical Strikes . | . . . . Average Slot Usage (%) 89 | . 99 88 76 Engine 12 | . 14 13 6 Treads 3 | . 12 . 1 Leg 3 | . . . 15 Wheel 19 | . 15 28 8 Device 7 | . 14 3 5 Storage 7 | . 14 3 8 Processor 1 | . . . 8 Protection 5 | . . 10 4 Ballistic Gun 19 | . 28 21 5 Ballistic Cannon 4 | . . 6 6 Naked Turns . | . . . . Heaviest Build 53 | 14 29 31 53 Greatest Support 63 | 40 40 24 63 Greatest Overweight (x) 10 | . 2 1 10 Average Overweight (x) . | . . . 1 Largest Inventory Capacity 15 | 8 15 15 15 Average Capacity 10 | 7 12 7 14 Most Carried 15 | 6 15 15 15 Average Carried 9 | 4 12 7 11 Final Capacity 15 | 8 15 5 15 Final Carried 15 | 6 15 5 9 Class Distribution -------------------- 97% | Mutant Dominant Class ---------------- Mutant | -10/Materials Mutant | -10/Subcaves Mutant | -8/Materials Resources | -11 -10 -10 -8 ----------- Run | Yrd Mat Sub Mat Matter Collected 1967 | 226 283 481 977 Remotely . | . . . . Salvage Created 1962 | 18 283 329 1332 Parts 124 | 3 21 34 66 Haulers Intercepted 7 | . 2 . 5 Recyclers Shooed 5 | . 2 . 3 Parts Field Recycled . | . . . . Retrieved Matter . | . . . . Parts Self-Destructed 10 | . . 10 . Prevented . | . . . . Kills | -11 -10 -10 -8 ------- Run | Yrd Mat Sub Mat Combat Hostiles Destroyed 46 | . 10 10 26 Guns 33 | . 10 9 14 Cannons 9 | . . 1 8 AOE 3 | . . . 3 Classes Destroyed 13 | 1 5 1 6 Worker 3 | . 1 . 2 Builder 1 | . . . 1 Tunneler 1 | 1 . . . Hauler 7 | . 2 . 5 Recycler 2 | . . . 2 Operator 1 | . 1 . . Swarmer 16 | . 9 . 7 Grunt 11 | . 1 . 10 Sentry 4 | . . . 4 Specialist 2 | . . . 2 Hunter 2 | . . . 2 Heavy 1 | . . . 1 Subdweller 10 | . . 10 . Best Kill Streak 5 | 1 3 2 5 Combat Bots Only 4 | . 3 2 4 Max Kills in Single Turn 3 | 1 1 1 3 Gunslinging . | . . . . Exploded 3 | . . . 3 Melee . | . . . . Uniques/NPCs Destroyed . | . . . . Combat | -11 -10 -10 -8 -------- Run | Yrd Mat Sub Mat Hostile Shots Fired 345 | . 59 46 240 Missed 96 | . 17 17 62 Damage Taken 3948 | . 336 910 2702 Core 690 | . 87 43 560 Absorbed by Shields 196 | . . . 196 Regen/Repaired (Parts) 17 | . 17 . . Core Remaining (%) 74 | 100 . 48 . Volleys Fired 225 | 1 60 43 121 Largest 2 | 2 2 2 2 Hottest 138 | 40 40 73 138 Shots Fired 420 | 2 120 85 213 Gun 326 | 2 120 71 133 Cannon 93 | . . 14 79 Launcher 1 | . . . 1 Special . | . . . . Kinetic 353 | 2 120 85 146 Thermal 66 | . . . 66 Explosive 1 | . . . 1 Electromagnetic . | . . . . Robot Hit Streak 22 | 1 10 22 8 Robot Miss Streak 7 | 1 4 2 7 Penetration Max 1 | . . . 1 Secondary Targets 4 | . 2 1 1 Max Gunslinging Chain 1 | . 1 1 1 Shots Hit Robots 248 | 1 69 61 117 Core Hits 103 | 1 29 21 52 Critical Kills 10 | 1 1 1 7 Critical Parts Destroyed 9 | . 1 . 8 Critical Strikes 22 | 1 2 2 17 Burn 2 | . . . 2 Destroy 20 | 1 2 2 15 Melee Attacks . | . . . . Impact . | . . . . Slashing . | . . . . Piercing . | . . . . Sneak Attacks . | . . . . Combat Hostiles . | . . . . Follow-up Attacks . | . . . . Damage Inflicted 4610 | 8 653 985 2964 Guns 3138 | 8 653 734 1743 Cannons 1327 | . . 251 1076 Explosions 145 | . . . 145 Melee . | . . . . Ramming . | . . . . Kinetic 3545 | 8 653 985 1899 Thermal 920 | . . . 920 Explosive 145 | . . . 145 Electromagnetic . | . . . . Impact . | . . . . Slashing . | . . . . Piercing . | . . . . Highest Corruption 1 | . 1 1 . Average Corruption 1 | . 1 1 . Corruption Purged . | . . . . Corruption Blocked . | . . . . Effects 28 | . 8 20 . Message Errors 10 | . 4 6 . Matter Fused 6 | . 2 4 . Heat Flow Errors 1 | . . 1 . Energy Discharges 5 | . 1 4 . Data Loss (minor) 4 | . 1 3 . Misfires 1 | . . 1 . Weapon Failures 1 | . . 1 . Overload Shots . | . . . . Overflow Damage 29 | . . . 29 Projectiles 29 | . . . 29 Explosions . | . . . . Melee . | . . . . Knockbacks 17 | . . 6 11 Impact . | . . . . Kinetic 17 | . . 6 11 Secondary . | . . . . Self-Inflicted Damage . | . . . . Shots . | . . . . Rammed . | . . . . Targets Rammed . | . . . . Kicked . | . . . . Crushed . | . . . . Highest Temperature 352 | . 6 197 352 Average Temperature 58 | . 6 24 63 Received Heat Transfer 1205 | . 12 123 1070 Effects 3 | . . . 3 Interference 3 | . . . 3 Siege Activations . | . . . . Robots Corrupted . | . . . . Combat Hostiles . | . . . . Parts Fried . | . . . . Impact Corruptions . | . . . . Robots Melted 1 | . . . 1 Combat Hostiles 1 | . . . 1 Parts Melted 6 | . . . 6 Heat Transferred 1961 | . . . 1961 Parts Sabotaged . | . . . . Parts Stolen . | . . . . Parts Stripped . | . . . . Power Chain Reactions . | . . . . Alert | -11 -10 -10 -8 ------- Run | Yrd Mat Sub Mat Peak Influence 449 | 5 257 . 449 Initial 3 | . 3 . . Average 136 | 1 95 . 201 Maximum Alert Level 2 | . 1 . 2 Low Security (%) 77 | 100 95 . 51 Level 1 20 | . 4 . 42 Level 2 2 | . . . 5 Level 3 . | . . . . Level 4 . | . . . . Level 5 . | . . . . High Security . | . . . . Max Security . | . . . . Squads Dispatched 4 | . 1 . 3 Investigation . | . . . . Extermination . | . . . . Reinforcement 4 | . 1 . 3 Assault . | . . . . Garrison . | . . . . Intercept . | . . . . Searches Triggered . | . . . . Construction Impeded 1 | . . . 1 Haulers Reinforced . | . . . . Active Scanning Responses . | . . . . Cargo Convoy Interrupts . | . . . . Stealth | -11 -10 -10 -8 --------- Run | Yrd Mat Sub Mat Distress Signals 5 | . 2 . 3 Communications Jammed . | . . . . Distress Signals . | . . . . Times Spotted 88 | . 30 15 43 Peak Tracking Total 7 | . 3 3 7 Tactical Retreats 3 | . 2 . 1 Traps | -11 -10 -10 -8 ------- Run | Yrd Mat Sub Mat Traps Triggered 6 | . 2 4 . Indirectly . | . . . . Trap Hack Attempts . | . . . . Triggered . | . . . . Disarmed . | . . . . Reprogrammed . | . . . . Reused . | . . . . Traps Extracted . | . . . . Installed . | . . . . Triggered . | . . . . Machines | -11 -10 -10 -8 ---------- Run | Yrd Mat Sub Mat Machines Disabled 1 | . . . 1 Max in Single Turn 1 | . . . 1 Garrison Access 1 | . . . 1 Machines Repaired . | . . . . Machines Dismantled . | . . . . Machines Sabotaged . | . . . . Overloaded Fab Kills . | . . . . Hacking | -11 -10 -10 -8 --------- Run | Yrd Mat Sub Mat Machines Accessed 13 | . 8 1 4 Terminals 8 | . 6 . 2 Fabricators . | . . . . Repair Stations 1 | . 1 . . Recycling Units 1 | . 1 . . Scanalyzers 1 | . . . 1 Garrison Access 1 | . . . 1 Total Hacks 38 | . 22 4 12 Successful 19 | . 8 4 7 Failed 19 | . 14 . 5 Catastrophic 1 | . . . 1 Database Lockouts . | . . . . Manual 14 | . 10 1 3 Terminals 23 | . 16 . 7 Fabricators . | . . . . Repair Stations 3 | . 3 . . Recycling Units 3 | . 3 . . Scanalyzers 2 | . . . 2 Garrison Access 3 | . . . 3 Terminal Hacks 13 | . 6 4 3 Record 5 | . 1 4 . Prototype ID Bank 3 | . 2 . 1 Terminal Index 2 | . 1 . 1 Locate Traps 3 | . 2 . 1 Fabricator Hacks . | . . . . Repair Station Hacks 2 | . 2 . . Scan Component 1 | . 1 . . Repair 1 | . 1 . . Recycling Unit Hacks . | . . . . Scanalyzer 2 | . . . 2 Insert Component 1 | . . . 1 Analyze 1 | . . . 1 Garrison Access Hacks 1 | . . . 1 Seal Access 1 | . . . 1 Unauthorized Hacks 1 | . . . 1 Terminals 1 | . . . 1 Botnet 1 | . . . 1 Fabricators . | . . . . Repair Stations . | . . . . Recycling Units . | . . . . Scanalyzers . | . . . . Garrison Access . | . . . . Data Cores Recovered . | . . . . Used . | . . . . Hacking Detections 11 | . 8 . 3 Full Trace Events 1 | . 1 . . Feedback Events . | . . . . Feedback Blocked . | . . . . Robot Schematics Acquired . | . . . . Robots Built . | . . . . Authchips . | . . . . Time . | . . . . Total Robot Build Rating . | . . . . Part Schematics Acquired 1 | . . . 1 Parts Built . | . . . . Authchips . | . . . . Time . | . . . . Total Part Build Rating . | . . . . Parts Repaired 1 | . 1 . . Time 32 | . 32 . . Parts Recycled . | . . . . Recycled Matter . | . . . . Retrieved Matter . | . . . . Retrieved Components . | . . . . Parts Scanalyzed 1 | . . . 1 Part Schematics Acquired 1 | . . . 1 Parts Damaged . | . . . . Bothacking | -11 -10 -10 -8 ------------ Run | Yrd Mat Sub Mat Used RIF Installer . | . . . . Robots Hacked . | . . . . Non-combat . | . . . . Combat . | . . . . Robot Hacks Applied . | . . . . Relay Couplers Released 2 | . . . 2 Machine Destruction 2 | . . . 2 Fabnet Peak Effective % . | . . . . Robots Rewired . | . . . . Allies Hacked . | . . . . Hacks Repelled . | . . . . Allies | -11 -10 -10 -8 -------- Run | Yrd Mat Sub Mat Total Allies . | . . . . Largest Group . | . . . . Highest-Rated Group . | . . . . Highest-Rated Ally . | . . . . Total Orders . | . . . . Ally Attacks . | . . . . Total Damage . | . . . . Kills . | . . . . Allies Corrupted . | . . . . Allies Melted . | . . . . Intel | -11 -10 -10 -8 ------- Run | Yrd Mat Sub Mat Robot Analysis Total . | . . . . Derelict Logs Recovered 1 | . . 1 . Drone Launches . | . . . . Drone Recoveries . | . . . . Exploration | -11 -10 -10 -8 ------------- Run | Yrd Mat Sub Mat Turns Passed 5234 | 84 1534 2480 1136 Spaces Moved 3423 | 44 765 2101 513 Core 11 | 5 . . 6 Treads 305 | 39 266 . . Legs 201 | . . . 201 Wheels 2906 | . 499 2101 306 Hover . | . . . . Flight . | . . . . Fastest Speed 50 | 50 105 90 105 Average Speed 112 | 147 124 104 125 Slowest Speed 550 | 160 160 105 550 Overloaded Moves . | . . . . Propulsion Burnouts . | . . . . Robots Hopped . | . . . . Cave-ins Triggered . | . . . . Exploration Rate (%) 60 | 4 100 93 46 Regions Visited 3 Branch Regions 1 Pre-discovered Areas 2 | . . 2 . Known Exits Taken . | . . . . Unknown Exits Taken 3 | 1 1 1 . Scrap Searched 5 | . . 5 . Spaces Dug . | . . . . Terrain Destroyed 48 | . . 2 46 Melee . | . . . . Projectile 38 | . . 2 36 AOE 10 | . . . 10 Terrain Rammed . | . . . . Walls Destroyed . | . . . . Machines Disabled . | . . . . Actions | -11 -10 -10 -8 --------- Run | Yrd Mat Sub Mat Total 4404 | 57 1251 2299 797 Wait 579 | . 378 96 105 Move 3420 | 43 764 2100 513 Hop . | . . . . Pick Up 47 | 5 17 5 20 Fast Attach 27 | 7 4 5 11 Attach 14 | . . 2 12 Detach 2 | . . . 2 Swap 20 | 1 9 8 2 Drop 56 | . 19 26 11 Fire 225 | 1 60 43 121 Melee . | . . . . Ram . | . . . . Kick . | . . . . Crush . | . . . . Escape Stasis . | . . . . Rewire . | . . . . Trap . | . . . . Miscellaneous 14 | . . 14 . Route ------- -11/Scrapyard -10/Materials (discovered 5 exits: [*Mat x3] / [*Min] / *Sub) -10/Subcaves (discovered 2 exits: *Mat x2) -8/Materials History --------- Turn | Location | Event 2 | -11/Scrapyard | Met Revision 17 10 | -11/Scrapyard | Discovered new exit (range 16) 85 | -11/Scrapyard | Entered Materials 313 | -10/Materials | Build established: Mutant 494 | -10/Materials | Discovered new exit (range 16) 927 | -10/Materials | Discovered new exit (range 11) 974 | -10/Materials | Discovered new exit (range 4) 1426 | -10/Materials | Discovered new exit (range 15) 1602 | -10/Materials | Repaired Arm. Wheel 1612 | -10/Materials | Discovered new exit (range 6) 1619 | -10/Materials | Entered Subcaves 1727 | -10/Subcaves | Learned location of Mines (-10) 2059 | -10/Subcaves | Shifting Twisted Machinery released Sub. Shrapnel Launcher 2189 | -10/Subcaves | A swath of the cavern ceiling suddenly collapsed 2270 | -10/Subcaves | Shifting Twisted Machinery released Sub. Laser 2369 | -10/Subcaves | Learned location of Zion (-7) 2369 | -10/Subcaves | Met a Zionite searching for "candidates" 2599 | -10/Subcaves | Core integrity fell below 50% 2953 | -10/Subcaves | Discovered new exit (range 5) 3109 | -10/Subcaves | Discovered new exit (range 15) 3512 | -10/Subcaves | A swath of the cavern ceiling suddenly collapsed 3561 | -10/Subcaves | Shifting Twisted Machinery released Ripper 3580 | -10/Subcaves | Shifting Twisted Machinery released Flamer 3611 | -10/Subcaves | Visited Clippyterm 3615 | -10/Subcaves | Learned Research machine intel 3766 | -10/Subcaves | Shifting Twisted Machinery released Flamer 3784 | -10/Subcaves | Shifting Twisted Machinery released Battle Rifle 4099 | -10/Subcaves | Entered Materials 4099 | -8/Materials | Evolved 4 slots: Propulsion x2, Utility x2 4901 | -8/Materials | Lost 7 parts (1p3n1u2w) 5058 | -8/Materials | Core integrity fell below 50% 5149 | -8/Materials | Lost 3 parts (1p1u1w) 5169 | -8/Materials | Core integrity fell below 20% 5235 | -8/Materials | Destroyed by G-47 Trooper with Particle Gun Last Messages --------------- 05210_ Hvy. Laser destroyed. 05210_ Critical hit (Burn: +37). 05211_ K-01 Serf collects debris. 05212_ G-47 Trooper destroyed. 05214_ Imp. Carbon-fiber Leg destroyed. 05214_ K-01 Serf collects debris. 05217_ Hvy. Laser destroyed. 05218_ Cld. Ion Engine destroyed. 05218_ K-01 Serf collects debris. 05219_ R-06 Scavenger collects Flight Unit. 05220_ The unstable cave ceiling collapses. 05221_ K-01 Serf collects debris. 05222_ R-06 Scavenger collects Lgt. Assault Rifle. 05225_ K-01 Serf collects debris. 05226_ R-06 Scavenger collects Lgt. Assault Rifle. 05229_ The unstable cave ceiling collapses. 05229_ K-01 Serf collects debris. 05230_ R-06 Scavenger collects Lgt. Ion Engine. 05234_ K-01 Serf collects debris. 05234_ U-05 Engineer builds a Wall. Map ----- +----------------------------------------------------+ | ???????????????? ??????????# % #### | | ???????????????? ??????????# #??# % | | ????????????????# ??????????# #??# % | | ????????????????# ??????????# #?## | | ????????????????# ??????????# #?## | | ????????????????+ +?????????# #??# | | ????????????????# #?????????# #??###"T" | | ????????????????# %#?????????# #???##""" | | ????????????????# =########??# #????#### | | ??????????##????# # *#??# #???????? | | ?????????? ??# # """!=#??# #??###### | | ?????????"? """ #% %# """!]#### #??# | | ????????"Y """ + + """!%+]=% #??# """ | | ??????# "" """ # # % %#####+##### """ | | ??????# #urg# """*=# # """ | | ??????# # # """ # " # """ | | ??????# # g # """ !# T # | | ??????# ?# # # """ " ###### | | ??????###/####?## # " " # """ #????? | | ???????????????##r # "T" # """ #????? | | ???????????????# #= """ # #????? | | ???????????????# % ######## #????? | | ???????????????##k =##?????###########????? | | ????????# ###### % % ##???????????????????? | | ????????# %=* #???????????????????? | | ????????+ @ !##???????????????????? | | ????????# #????????????????????? | | ????????### #### #????????????????????? | | ??????????#????#### #????????????????????? | | ??????????????????? #????????????????????? | | ??????????????????? #????????????????????? | | ??????????????????? #????????????????????? | | ??????????????????? #????????????????????? | | ??????????????????? #????????????????????? | | ??????????????????? #????????????????????? | | ??????????????????? #????????????????????? | | ???????????????????? #????????????????????# | | ???????????????????? +????????????????????# | | ???????????????????? #????????????????????# | | ???????????????????? #????????????????????# | | ??????????????????????????????????????????# | | ??????????????????????????????????????????# | | ??????????????????????????????????????????# | | ??????????????????????????????????????????# | | ??????????????????????????????????????????# | | ??????????????????????????????????????????# | | ??????????????????????????????????????????# | | ??????????????????????????????????????????? | | ??????????????????????????????????????????? | | ??????????????????????????????????????????? | +----------------------------------------------------+ Best States ------------- Heat Dissipation 55 Energy Generation 15 Energy Capacity 280 Matter Stores 300 Matter Capacity 300 Sight Range 16 Terrain Scan Density 10 Armor Coverage 800 Evasion (%) 55 Target Analysis 5 Recoil Reduction 2 Item Schematics ----------------- Ripper | -8/Materials | Scanalyzed Robot Schematics ------------------ None Fabricated ------------ Nothing Alien Tech Used ----------------- None Achievements -------------- None Challenges ------------ None Game ------ Seed AssemblyCooledMount Manual? 0 Play Time 00:44:55 Cumulative 118.2 hours Start 2024.04.19 @ 11:00:07 End 2024.04.19 @ 11:43:43 Sessions 1 Manual Loads 0 Difficulty Rogue Special Mode None Game No. 101 Rogue 101 Adventurer 0 Explorer 0 Win Type - Total 7 Types 6/0/1/0/0/0/0/0/0 Lore% 64 Gallery% 64 Achievement% 57 Wizard Run 0 Options --------- Layout 0 ASCII 0 Keyboard 1 Movement Vi Keybinds 0 Fullscreen 1 Font 24/Smallcaps Map View 76x50 Zoom Use 0% Tactical HUD 1 Map Filters NONE Filters NONE Steam 1 RUN: 05c9d91e-9aeb-4dfd-8bd0-394c65a996d1